fUST/lending_fUST_20251230
["ID","MTS","AMOUNT","RATE_DAILY","PERIOD"]
[400073181,1767067854611,-160.0,0.00031637,3]
[400073182,1767067854621,-353.7,0.00031651,4]
[400073183,1767067854631,-716.59526239,0.00031718,2]
[400073184,1767067854640,-500.0,0.00031861,7]
[400073185,1767067854649,-204.60171926,0.000319,120]
[400073186,1767067854659,-178.24448024,0.000319,120]
[400073187,1767067854669,-174.48954131,0.000319,120]
[400073188,1767067854678,-1388.90813834,0.000319,120]
[400073189,1767067854690,-11247.79533795,0.000319,2]
[400073190,1767067854699,-308.96700693,0.000319,120]
[400073191,1767067854709,-180.65011172,0.000319,120]
[400073192,1767067854719,-201.19436054,0.000319,120]
[400073193,1767067854728,-167.28493125,0.000319,120]
[400073194,1767067854738,-405.1137156,0.000319,120]
[400073195,1767067854747,-173.91029313,0.000319,120]
[400073196,1767067854757,-1409.93,0.000319,14]
[400073197,1767067854767,-800.0,0.00031996,7]
[400073198,1767067854775,-329.92,0.00031996,30]
[400073199,1767067854785,-2000.01,0.00032,30]
[400073200,1767067854795,-200.51904304,0.00032,2]
[400073201,1767067854804,-162.04844494,0.00032,120]
[400073202,1767067854814,-159.17375118,0.00032,120]
[400073203,1767067854824,-1020.0,0.00032,7]
[400073204,1767067854833,-1391.47,0.00032054,32]
[400073205,1767067854842,-500.0,0.0003216,2]
[400073206,1767067854852,-188.0,0.00032219,14]
[400073207,1767067854861,-2200.173,0.00032436,2]
[400073208,1767067854870,-635.602,0.00032436,2]
[400073209,1767067854879,-1391.47,0.00032602,33]
[400073210,1767067854890,-160.0,0.00032642,3]
[400073211,1767067854899,-2000.0,0.00032727,7]
[400073212,1767067854908,-431.020463,0.00032822,24]
[400073213,1767067854918,-430.3730601,0.00032849,30]
[400073214,1767067854927,-376.3220282,0.00032849,30]
[400073215,1767067854936,-376.3220282,0.00032849,30]
[400073216,1767067854946,-376.3220282,0.00032849,30]
[400073217,1767067854955,-965.70893362,0.00032876,120]
[400073218,1767067854964,-575.02,0.00032876,2]
[400073219,1767067854973,-575.02,0.00032876,2]
[400073220,1767067854984,-575.02,0.00032876,2]
[400073221,1767067854993,-575.02,0.00032876,2]
[400073222,1767067855003,-575.02,0.00032876,2]
[400073223,1767067855012,-575.02,0.00032876,2]
[400073224,1767067855089,-575.02,0.00032876,2]
[400073225,1767067855099,-575.02,0.00032876,2]
[400073226,1767067855109,-575.02,0.00032876,2]
[400073227,1767067855118,-575.02,0.00032876,2]
[400073228,1767067855128,-575.02,0.00032876,2]
[400073229,1767067855138,-575.02,0.00032876,2]
[400073230,1767067855147,-575.02,0.00032876,2]
[400073231,1767067855157,-575.02,0.00032876,2]
[400073232,1767067855167,-575.02,0.00032876,2]
[400073233,1767067855177,-575.02,0.00032876,2]
[400073234,1767067855187,-575.02,0.00032876,2]
[400073235,1767067855196,-575.02,0.00032876,2]
[400073236,1767067855207,-575.02,0.00032876,2]
[400073237,1767067855216,-575.02,0.00032876,2]
[400073238,1767067855226,-575.02,0.00032876,2]
[400073239,1767067855235,-575.02,0.00032876,2]
[400073240,1767067855245,-575.02,0.00032876,2]
[400073241,1767067855255,-575.2218476,0.00032876,2]
[400073242,1767067855264,-453.37222375,0.00032876,2]
[400073243,1767067855273,-365.39370366,0.00032876,2]
[400073244,1767067855283,-500.0,0.00032876,2]
[400073245,1767067855293,-500.0,0.00032876,2]
[400073246,1767067855304,-500.0,0.00032876,2]
[400073247,1767067855314,-266.77705871,0.00032876,2]
[400073248,1767067855324,-500.0,0.00032876,2]
[400073249,1767067855333,-500.0,0.00032876,2]
[400073250,1767067855343,-500.0,0.00032876,2]
[400073251,1767067855353,-500.0,0.00032876,2]
[400073252,1767067855363,-500.0,0.00032876,2]
[400073253,1767067855372,-500.0,0.00032876,2]
[400073254,1767067855382,-500.0,0.00032876,2]
[400073255,1767067855392,-500.0,0.00032876,2]
[400073256,1767067855402,-500.0,0.00032876,2]
[400073257,1767067855413,-500.0,0.00032876,2]
[400073258,1767067855423,-500.0,0.00032876,2]
[400073259,1767067855433,-285.16387164,0.00032876,2]
[400073260,1767067855443,-500.0,0.00032876,2]
[400073261,1767067855452,-500.0,0.00032876,2]
[400073262,1767067855462,-500.0,0.00032876,2]
[400073263,1767067855472,-500.0,0.00032876,2]
[400073264,1767067855481,-500.0,0.00032876,2]
[400073265,1767067855490,-500.0,0.00032876,2]
[400073266,1767067855500,-500.0,0.00032876,2]
[400073267,1767067855510,-500.0,0.00032876,2]
[400073268,1767067855520,-500.0,0.00032876,2]
[400073269,1767067855529,-500.0,0.00032876,2]
[400073270,1767067855539,-500.0,0.00032876,2]
[400073271,1767067855549,-500.0,0.00032876,2]
[400073272,1767067855559,-500.0,0.00032876,2]
[400073273,1767067855568,-545.05378515,0.00032876,2]
[400073274,1767067855578,-500.0,0.00032876,2]
[400073275,1767067855587,-199.66034763,0.00032876,2]
[400073276,1767067855597,-500.0,0.00032876,2]
[400073277,1767067855608,-448.9137316,0.00032876,2]
[400073278,1767067855618,-572.71644989,0.00032876,2]
[400073279,1767067855627,-500.0,0.00032876,2]
[400073280,1767067855637,-161.94681685,0.00032876,2]
[400073281,1767067855647,-500.0,0.00032876,2]
[400073282,1767067855656,-500.0,0.00032876,2]
[400073283,1767067855666,-500.0,0.00032876,2]
[400073284,1767067855676,-500.0,0.00032876,2]
[400073285,1767067855689,-233.58774294,0.00032876,2]
[400073286,1767067855700,-194.3023816,0.00032876,2]
[400073287,1767067855709,-500.0,0.00032876,2]
[400073288,1767067855719,-200.0,0.00032876,2]
[400073289,1767067855728,-500.0,0.00032877,5]
[400073290,1767067855738,-204.60171926,0.000329,120]
[400073291,1767067855747,-178.24448024,0.000329,120]
[400073292,1767067855757,-174.48954131,0.000329,120]
[400073293,1767067855766,-1388.90813834,0.000329,120]
[400073294,1767067855775,-308.96700693,0.000329,120]
[400073295,1767067855784,-180.65011172,0.000329,120]
[400073296,1767067855794,-167.28493125,0.000329,120]
[400073297,1767067855803,-405.1137156,0.000329,120]
[400073298,1767067855813,-1016.0,0.00033,7]
[400073299,1767067855822,-160.0,0.00033145,4]
[400073300,1767067855832,-1391.47,0.0003315,34]
[400073301,1767067855842,-353.7,0.00033161,5]
[400073302,1767067855851,-584.588496,0.00033165,2]
[400073303,1767067855861,-225.2411399,0.000332,117]
[400073304,1767067855870,-1241.1395,0.0003322,30]
[400073305,1767067855880,-760.33793587,0.00033385,2]
[400073306,1767067855890,-1000.0,0.00033425,5]
[400073307,1767067855899,-659.84,0.00033519,30]
[400073308,1767067855909,-315.247839,0.00033534,30]
[400073309,1767067855919,-619.2906169,0.00033534,30]
[400073310,1767067855929,-303.3898112,0.00033534,30]
[400073311,1767067855939,-208.5025829,0.00033534,30]
[400073312,1767067855948,-303.3898112,0.00033534,30]
[400073313,1767067855958,-303.3898112,0.00033534,30]
[400073314,1767067855968,-15279.06072301,0.00033591,2]
[400073315,1767067855978,-1391.47,0.00033698,35]
[400073316,1767067855987,-250.0,0.00033699,5]
[400073317,1767067855997,-762.66210068,0.00033718,120]
[400073318,1767067856006,-584.51,0.000338,7]
[400073319,1767067856016,-1000.0,0.00033821,30]
[400073320,1767067856026,-1000.0,0.00033821,30]
[400073321,1767067856035,-1000.0,0.00033821,30]
[400073322,1767067856045,-715.0,0.00033821,30]
[400073323,1767067856055,-178.24448024,0.000339,120]
[400073324,1767067856065,-174.48954131,0.000339,120]
[400073325,1767067856075,-1388.90813834,0.000339,120]
[400073326,1767067856084,-308.96700693,0.000339,120]
[400073327,1767067856094,-405.1137156,0.000339,120]
[400073328,1767067856104,-3749.05342105,0.00033943,2]
[400073329,1767067856113,-1500.0,0.00033973,5]
[400073330,1767067856123,-1032.28132267,0.00034,2]
[400073331,1767067856134,-50000.0,0.00034,14]
[400073332,1767067856144,-1016.0,0.00034,7]
[400073333,1767067856153,-861.94092599,0.00034049,25]
[400073334,1767067856163,-295.663,0.000342,30]
[400073335,1767067856173,-295.66,0.000342,30]
[400073336,1767067856182,-219.971,0.00034218,2]
[400073337,1767067856192,-240.418,0.00034218,2]
[400073338,1767067856201,-250.0,0.00034218,2]
[400073339,1767067856211,-188.0,0.00034233,30]
[400073340,1767067856222,-1391.47,0.00034246,36]
[400073341,1767067856232,-21201.1084,0.0003444,30]
[400073342,1767067856242,-188.0,0.00034521,30]
[400073343,1767067856251,-737.43404646,0.00034521,5]
[400073344,1767067856261,-350.0,0.00034521,5]
[400073345,1767067856271,-2000.0,0.00034545,7]
[400073346,1767067856280,-599934.13065945,0.0003465,4]
[400073347,1767067856377,-2023.66636474,0.0003465,4]
[400073348,1767067856493,5000.0,0.00012438,2]
[400073349,1767067857103,-3e-08,0.00013698,2]
[400073350,1767067857299,-345.64034276,0.00013698,2]
[400073351,1767067857447,-154.35965721,0.00013698,2]
[400073352,1767067857458,-500.0,0.00013698,2]
[400073353,1767067857467,-536.46348193,0.00013698,2]
[400073354,1767067857478,-151.0,0.00019178,2]
[400073355,1767067857487,-151.0,0.00019178,2]
[400073356,1767067857498,-151.0,0.00019178,2]
[400073357,1767067857508,-151.0,0.00019178,2]
[400073358,1767067857519,-451.31189708,0.00021917,2]
[400073359,1767067857528,-279.06178333,0.00021917,2]
[400073360,1767067857538,-1465.22,0.00032877,10]
[400073361,1767067857549,-254647.51724255,0.0003465,4]
[400073362,1767067857564,-39879.5659379,0.0003465,4]
[400073363,1767067857605,760.02,0.00012339,2]
[400073364,1767067858616,-494.293216,0.00012926,2]
[400073365,1767067868727,-5000.0,0.00012797,2]
[400073366,1767067883949,-250.0,0.00012868,2]
[400073367,1767067886357,5000.0,0.00012797,2]
[400073368,1767067899202,-1025.736784,0.00012926,2]
[400073370,1767067923708,10000.01,0.00012582,2]
[400073371,1767067923739,10000.01,0.00012582,2]
[400073372,1767067923767,10000.01,0.00012582,2]
[400073373,1767067923794,10000.01,0.00012582,2]
[400073374,1767067923823,10000.01,0.00012582,2]
[400073375,1767067923851,10000.01,0.00012582,2]
[400073376,1767067923878,10000.01,0.00012582,2]
[400073377,1767067923905,10000.01,0.00012582,2]
[400073378,1767067923933,10000.01,0.00012582,2]
[400073379,1767067923960,10000.01,0.00012582,2]
[400073380,1767067933395,-9712.68276538,0.00012582,2]
[400073381,1767067933483,-10000.01,0.00012582,2]
[400073382,1767067933651,-10000.01,0.00012582,2]
[400073383,1767067933773,-10000.01,0.00012582,2]
[400073384,1767067933910,-10000.01,0.00012582,2]
[400073385,1767067934053,-10000.01,0.00012582,2]
[400073386,1767067934168,-10000.01,0.00012582,2]
[400073387,1767067934272,-10000.01,0.00012582,2]
[400073388,1767067934378,-10000.01,0.00012582,2]
[400073389,1767067935742,-10000.01,0.00012582,2]
[400073390,1767067935839,-10000.01,0.00012582,2]
[400073391,1767067935933,-10000.01,0.00012582,2]
[400073392,1767067936047,-10000.01,0.00012582,2]
[400073393,1767067936149,-10000.01,0.00012582,2]
[400073394,1767067936284,-10000.01,0.00012582,2]
[400073395,1767067936399,-10000.01,0.00012582,2]
[400073396,1767067936514,-10000.01,0.00012582,2]
[400073397,1767067936637,-10000.01,0.00012582,2]
[400073398,1767067936844,-10000.01,0.00012582,2]
[400073399,1767067970878,-363739.0,0.00012582,2]
[400073400,1767068134114,-5000.0,0.00012205,2]
[400073401,1767068137110,5000.0,0.00012205,2]
[400073402,1767068159781,5000.0,0.00012329,2]
[400073403,1767068162139,-380.06,0.00012329,2]
[400073404,1767068172845,-316.72,0.00012329,2]
[400073405,1767068172866,-300.0,0.00012454,2]
[400073406,1767068172888,-300.0,0.00012454,2]
[400073407,1767068172910,-300.0,0.00012454,2]
[400073408,1767068173059,-695.45783046,0.00012455,2]
[400073409,1767068182629,3087.82216954,0.000125,2]
[400073410,1767068182651,1912.17783046,0.000125,2]
[400073411,1767068190022,198.39,0.0001,2]
[400073412,1767068190047,40.75,0.0001,2]
[400073413,1767068192719,-263.93,0.00012329,2]
[400073414,1767068192741,-300.0,0.0001258,2]
[400073415,1767068192762,-217.63604099,0.00012581,2]
[400073416,1767068192785,-500.0,0.00012581,2]
[400073417,1767068192806,-199.66034763,0.00012581,2]
[400073418,1767068192827,-500.0,0.00012581,2]
[400073419,1767068192852,-500.0,0.00012581,2]
[400073420,1767068192874,-500.0,0.00012581,2]
[400073421,1767068192897,-500.0,0.00012581,2]
[400073422,1767068192919,-500.0,0.00012581,2]
[400073423,1767068192939,-490.83870103,0.00012581,2]
[400073424,1767068192958,-346.63806223,0.00012581,2]
[400073425,1767068192980,-181.29684812,0.00012581,2]
[400073426,1767068197166,-219.94,0.00012329,2]
[400073427,1767068197193,-318.70315188,0.00012581,2]
[400073428,1767068197215,-500.0,0.00012581,2]
[400073429,1767068197239,-500.0,0.00012581,2]
[400073430,1767068197261,-242.84241529,0.00012581,2]
[400073431,1767068197281,-500.0,0.00012581,2]
[400073432,1767068197300,-500.0,0.00012581,2]
[400073433,1767068197321,-290.05330138,0.00012581,2]
[400073434,1767068197343,-500.0,0.00012581,2]
[400073435,1767068197365,-500.0,0.00012581,2]
[400073436,1767068197386,-500.0,0.00012581,2]
[400073437,1767068197411,-428.46113145,0.00012581,2]
[400073438,1767068198926,-71.53886855,0.00012581,2]
[400073439,1767068198949,-338.57262962,0.00012581,2]
[400073440,1767068198973,-500.0,0.00012581,2]
[400073441,1767068198997,-500.0,0.00012581,2]
[400073442,1767068199021,-500.0,0.00012581,2]
[400073443,1767068199044,-500.0,0.00012581,2]
[400073444,1767068199067,-500.0,0.00012581,2]
[400073445,1767068199090,-223.53356125,0.00012581,2]
[400073446,1767068199113,-500.0,0.00012581,2]
[400073447,1767068199137,-500.0,0.00012581,2]
[400073448,1767068199159,-500.0,0.00012581,2]
[400073449,1767068199182,-366.35494058,0.00012581,2]
[400073450,1767068204892,-219.94,0.00012329,2]
[400073451,1767068204919,-133.64505942,0.00012581,2]
[400073452,1767068204943,-500.0,0.00012581,2]
[400073453,1767068204969,-500.0,0.00012581,2]
[400073454,1767068204993,-250.0,0.00012581,2]
[400073455,1767068205022,-3396.41494058,0.00012582,2]
[400073456,1767068211414,-5000.0,0.00012457,2]
[400073457,1767068222953,-879.81,0.00012329,2]
[400073458,1767068222975,-3046.35098232,0.0001245,2]
[400073459,1767068222997,-446.04198823,0.00012581,2]
[400073460,1767068223025,-627.79702945,0.00012582,2]
[400073461,1767068233221,-3337.92633352,0.00012457,2]
[400073462,1767068233248,-1662.07366648,0.00012582,2]
[400073463,1767068290475,-300.0,0.00012581,2]
[400073464,1767068290497,-500.0,0.00012581,2]
[400073465,1767068290518,-500.0,0.00012581,2]
[400073466,1767068290543,-473.652352,0.00012581,2]
[400073467,1767068290569,-3226.347648,0.00012582,2]
[400073468,1767068300010,-250.91,0.00012275,2]
[400073469,1767068300042,-1053.41469569,0.00012456,2]
[400073470,1767068300068,-500.0,0.00012581,2]
[400073471,1767068300095,-500.0,0.00012581,2]
[400073472,1767068300119,-500.0,0.00012581,2]
[400073473,1767068300143,-500.0,0.00012581,2]
[400073474,1767068300175,-563.00755743,0.00012581,2]
[400073475,1767068300203,-1132.66774688,0.00012582,2]
[400073476,1767068378056,-247.72,0.00012304,2]
[400073477,1767068378083,-4752.28,0.00012582,2]
[400073478,1767068389218,-179.0070747,0.00012161,2]
[400073479,1767068389247,-4820.9929253,0.00012582,2]
[400073480,1767068434921,-300.0,0.00012581,2]
[400073481,1767068434947,-598.0,0.00012582,2]
[400073482,1767068434977,-4102.0,0.00012582,2]
[400073483,1767068456332,-244.57,0.00012264,2]
[400073484,1767068456362,-4755.43,0.00012582,2]
[400073485,1767068532925,-241.45,0.00012268,2]
[400073486,1767068532945,-300.0,0.00012581,2]
[400073487,1767068532969,-332.31541123,0.00012581,2]
[400073488,1767068532990,-242.64664357,0.00012581,2]
[400073489,1767068533015,-500.0,0.00012581,2]
[400073490,1767068533037,-500.0,0.00012581,2]
[400073491,1767068533060,-383.5879452,0.00012581,2]
[400073492,1767068572319,428.0,0.00028767,120]
[400073493,1767068591845,1799.66,0.00012,10]
[400073495,1767068819622,23200.34,0.00012,3]
[400073496,1767068819647,25000.0,0.00012,3]
[400073497,1767068834310,200.0,0.0001,2]
[400073503,1767068892934,-195.0,0.0001158,2]
[400073504,1767068892957,-304.0,0.0001158,2]
[400073505,1767068892978,-571.07787395,0.00011581,2]
[400073506,1767068895958,-154.50220062,0.00011581,2]
[400073509,1767068901992,-211.0,0.00011581,2]
[400073511,1767068905333,-433.93347767,0.00011581,2]
[400073512,1767068907187,-169.20118282,0.00011581,2]
[400073513,1767068909587,-414.87972018,0.00011581,2]
[400073516,1767068912851,-179.75322194,0.0001158,2]
[400073517,1767068915538,-201.56360343,0.0001158,2]
[400073518,1767068918893,-118.68317463,0.0001158,2]
[400073519,1767068918917,-141.75897789,0.0001158,2]
[400073520,1767068920657,-28.09367261,0.0001158,2]
[400073521,1767068920681,-157.69678919,0.0001158,2]
[400073522,1767068923801,-296.11339274,0.0001158,2]
[400073523,1767068925844,-46.18981807,0.0001158,2]
[400073524,1767068925867,-206.01396418,0.0001158,2]
[400073525,1767068929442,-293.98603582,0.0001158,2]
[400073526,1767068929467,-73.382728,0.0001158,2]
[400073527,1767068930982,-238.63123618,0.0001158,2]
[400073528,1767068932529,-154.50220062,0.0001158,2]
[400073529,1767068934061,-33.4838352,0.0001158,2]
[400073530,1767068934087,-266.5161648,0.0001158,2]
[400073531,1767068936005,-233.4838352,0.0001158,2]
[400073532,1767068936037,-250.35301802,0.0001158,2]
[400073533,1767068940047,-249.64698198,0.0001158,2]
[400073534,1767068940073,-189.536293,0.0001158,2]
[400073535,1767068943276,-205.14083363,0.00011579,2]
[400073536,1767068945357,-94.85916637,0.00011579,2]
[400073537,1767068945382,-142.87698351,0.0001158,2]
[400073538,1767068947365,-99.06021637,0.0001158,2]
[400073539,1767068947386,-212.50708059,0.0001158,2]
[400073540,1767068949406,-287.49291941,0.0001158,2]
[400073541,1767068949430,-20.1502004,0.0001158,2]
[400073542,1767068951609,-385.21519379,0.0001158,2]
[400073552,1767068953823,-94.63460581,0.0001158,2]
[400073553,1767068953846,-79.00622006,0.0001158,2]
[400073556,1767068957267,-190.34432457,0.0001158,2]
[400073557,1767068960041,-326.35917413,0.0001158,2]
[400073560,1767068961447,-33.7677631,0.0001158,2]
[400073561,1767068961473,-470.53835166,0.0001158,2]
[400073564,1767068966472,-29.46164834,0.0001158,2]
[400073565,1767068966499,-268.88738365,0.0001158,2]
[400073567,1767068969088,-231.11261635,0.0001158,2]
[400073568,1767068969112,-81.76511965,0.0001158,2]
[400073569,1767068971540,-203.01349784,0.0001158,2]
[400073570,1767068971564,-137.28299328,0.0001158,2]
[400073571,1767068973111,-122.55841001,0.0001158,2]
[400073572,1767068973135,-82.07279649,0.0001158,2]
[400073573,1767068975091,-237.30351651,0.0001158,2]
[400073574,1767068977327,-180.623687,0.0001158,2]
[400073575,1767068977353,-50.33319347,0.0001158,2]
[400073576,1767068979497,-194.24835817,0.0001158,2]
[400073577,1767068983262,-255.41844836,0.0001158,2]
[400073578,1767068983287,-28.34446757,0.0001158,2]
[400073579,1767068986489,-269.04311953,0.0001158,2]
[400073580,1767068990050,-202.6124129,0.0001158,2]
[400073581,1767068990074,-72.30382601,0.0001158,2]
[400073582,1767068992076,-184.83391508,0.0001158,2]
[400073583,1767068994185,-242.86225891,0.0001158,2]
[400073584,1767068994209,-109.0265431,0.0001158,2]
[400073585,1767068996326,-249.24312033,0.0001158,2]
[400073586,1767068998585,-141.73033657,0.0001158,2]
[400073587,1767068998610,-29.59834805,0.0001158,2]
[400073588,1767069001355,300.0,0.00011579,2]
[400073589,1767069001959,300.0,0.00011579,2]
[400073590,1767069002183,300.0,0.00011579,2]
[400073591,1767069002212,4558.9580356,0.0001158,2]
[400073592,1767069002240,300.0,0.00011579,2]
[400073593,1767069002405,-360.58824748,0.0001158,2]
[400073594,1767069002573,289.0,0.00011579,2]
[400073595,1767069004799,583.0,0.0001158,2]
[400073596,1767069005851,-197.16592788,0.0001158,2]
[400073597,1767069008323,-16.38312669,0.0001158,2]
[400073598,1767069008370,-203.3371862,0.0001158,2]
[400073599,1767069010314,-198.09287357,0.0001158,2]
[400073600,1767069012403,-139.33394946,0.0001158,2]
[400073601,1767069012428,-96.65741785,0.0001158,2]
[400073602,1767069013856,-167.84760442,0.0001158,2]
[400073603,1767069015404,-226.75151227,0.0001158,2]
[400073604,1767069017626,-8.74346546,0.0001158,2]
[400073605,1767069017652,-202.61567037,0.0001158,2]
[400073606,1767069019665,-294.56594809,0.0001158,2]
[400073607,1767069022601,-2.81838154,0.0001158,2]
[400073608,1767069022625,-247.48270903,0.0001158,2]
[400073609,1767069022649,-113.64296359,0.0001158,2]
[400073610,1767069025173,-202.77772251,0.0001158,2]
[400073611,1767069025196,-23.57126627,0.0001158,2]
[400073612,1767069026936,-170.42599167,0.0001158,2]
[400073613,1767069029724,-283.42031407,0.0001158,2]
[400073614,1767069029749,-216.57968593,0.0001158,2]
[400073627,1767069032525,-170.54395107,0.0001158,2]
[400073628,1767069034093,-129.58449359,0.0001158,2]
[400073629,1767069034118,-33.4433006,0.0001158,2]
[400073644,1767069036720,-333.55862215,0.0001158,2]
[400073646,1767069036730,-459.20872908,0.0001158,2]
[400073648,1767069036740,-371.45682911,0.0001158,2]
[400073650,1767069036750,-500.0,0.0001158,2]
[400073652,1767069036759,-500.0,0.0001158,2]
[400073654,1767069036769,-235.93452753,0.0001158,2]
[400073656,1767069036779,-294.16457544,0.0001158,2]
[400073658,1767069036792,-257.12962775,0.0001158,2]
[400073660,1767069036814,-500.0,0.0001158,2]
[400073661,1767069036830,-155.48402138,0.0001158,2]
[400073662,1767069036839,-184.83391508,0.0001158,2]
[400073663,1767069036850,-391.83885257,0.0001158,2]
[400073664,1767069036859,-500.0,0.0001158,2]
[400073665,1767069036868,-500.0,0.0001158,2]
[400073666,1767069036877,-160.31618902,0.0001158,2]
[400073667,1767069036886,-205.09507372,0.0001158,2]
[400073668,1767069036896,-305.06739371,0.0001158,2]
[400073669,1767069036905,-500.0,0.0001158,2]
[400073670,1767069036915,-438.1106481,0.0001158,2]
[400073671,1767069036924,-571.02930391,0.0001158,2]
[400073672,1767069036934,-233.65509977,0.00011581,2]
[400073673,1767069036944,-100385.89545966,0.00011581,2]
[400073674,1767069036954,-300.0,0.00011812,2]
[400073675,1767069036963,-300.0,0.00011812,2]
[400073676,1767069036972,-300.0,0.00011812,2]
[400073677,1767069036984,-300.0,0.00011812,2]
[400073678,1767069036994,-300.0,0.00011812,2]
[400073679,1767069037003,-300.0,0.00011812,2]
[400073680,1767069037013,-300.0,0.00011812,2]
[400073681,1767069037022,-300.0,0.00011812,2]
[400073682,1767069037032,-300.0,0.00011812,2]
[400073683,1767069037041,-300.0,0.00011812,2]
[400073684,1767069037160,-300.0,0.00011812,2]
[400073685,1767069037174,-300.0,0.00011812,2]
[400073686,1767069037184,-300.0,0.00011812,2]
[400073687,1767069037195,-300.0,0.00011812,2]
[400073688,1767069037204,-300.0,0.00011812,2]
[400073689,1767069037218,-600.0,0.00011812,2]
[400073690,1767069037227,-207.33510635,0.00012161,2]
[400073691,1767069037237,-328.81,0.00012329,2]
[400073692,1767069037247,-274.01,0.00012329,2]
[400073693,1767069037256,-228.34,0.00012329,2]
[400073694,1767069037266,-190.29,0.00012329,2]
[400073695,1767069037276,-158.57,0.00012329,2]
[400073696,1767069037286,-792.88,0.00012329,2]
[400073697,1767069037296,-54030.20167579,0.00012482,2]
[400073698,1767069037308,-1036.25804875,0.00012482,2]
[400073699,1767069037319,-404.05,0.00012482,2]
[400073700,1767069037353,3369.0519644,0.0001158,2]
[400073701,1767069037376,424.41452518,0.0001158,2]
[400073709,1767069037812,-905.78757059,0.00012482,2]
[400073710,1767069037826,-1140.62200724,0.00012482,2]
[400073711,1767069037872,-290630.41970739,0.00012482,2]
[400073712,1767069037882,-238.38,0.00012694,2]
[400073713,1767069037891,-300.0,0.00012717,2]
[400073714,1767069037902,-420.0,0.00012717,2]
[400073715,1767069037912,-365.0,0.00012717,2]
[400073716,1767069037922,-500.0,0.00012918,2]
[400073717,1767069037932,-334.53292403,0.00012918,2]
[400073718,1767069037943,-398.83266531,0.00012943,2]
[400073719,1767069037954,-720.0,0.00012993,2]
[400073720,1767069037964,-500.0,0.00013192,2]
[400073721,1767069037974,-411.62035425,0.00013248,2]
[400073722,1767069037984,-500.0,0.00013273,2]
[400073723,1767069037994,-500.30812783,0.00013273,2]
[400073724,1767069038004,-488.21037431,0.00013273,2]
[400073726,1767069038014,-500.0,0.00013273,2]
[400073728,1767069038025,-500.0,0.00013273,2]
[400073730,1767069038034,-500.0,0.00013273,2]
[400073732,1767069038044,-500.0,0.00013273,2]
[400073734,1767069038053,-500.0,0.00013273,2]
[400073736,1767069038063,-500.26362116,0.00013273,2]
[400073738,1767069038073,-500.0,0.00013273,2]
[400073740,1767069038082,-500.0,0.00013273,2]
[400073742,1767069038092,-500.0,0.00013273,2]
[400073744,1767069038101,-500.0,0.00013273,2]
[400073746,1767069038111,-476.76,0.00013299,2]
[400073748,1767069038121,-35053.1258417,0.00013365,2]
[400073750,1767069038131,-436.38539303,0.00013385,2]
[400073752,1767069038141,-151.0,0.000134,2]
[400073753,1767069038151,-628.40939462,0.00013466,2]
[400073754,1767069038161,-275.71301773,0.00013581,2]
[400073755,1767069038171,-528.29778119,0.00013698,2]
[400073756,1767069038181,-637.543122,0.00013699,2]
[400073757,1767069038190,-258.209554,0.00013699,2]
[400073758,1767069038200,-500.0,0.00013699,2]
[400073759,1767069038213,-500.0,0.00013699,2]
[400073760,1767069038223,-500.0,0.00013699,2]
[400073761,1767069038232,-500.0,0.00013699,2]
[400073762,1767069038243,-500.0,0.00013821,2]
[400073763,1767069038254,-501.95091001,0.00013821,2]